[Event "Titled Tuesday Blitz June 13 Late 2023"]
[White "kiwibobo"]
[Black "Seemann, Jakub"]
[BlackFideId "21874697"]
[WhiteElo "2309"]
[BlackElo "2364"]
[Result "0-1"]
[Round "4"]
[TimeControl "180+2"]
[Date "2023.06.13"]
[WhiteClock "0:00:05"]
[BlackClock "0:01:42"]
[Board "80"]

1. e4 {[%clk 0:03:00]}  e6 {[%clk 0:02:59]} 2. d4 {[%clk 0:03:00]}  d5 {[%clk 0:03:00]} 3. Nd2 {[%clk 0:03:00]}  dxe4 {[%clk 0:03:00]} 4. Nxe4 {[%clk 0:03:00]}  Bd7 {[%clk 0:03:01]} 5. Nf3 {[%clk 0:02:59]}  Bc6 {[%clk 0:03:02]} 6. Bd3 {[%clk 0:03:00]}  Nd7 {[%clk 0:03:02]} 7. O-O {[%clk 0:03:00]}  Ngf6 {[%clk 0:03:03]} 8. Ned2 {[%clk 0:02:56]}  Be7 {[%clk 0:02:55]} 9. Nc4 {[%clk 0:02:52]}  Bxf3 {[%clk 0:02:52]} 10. Qxf3 {[%clk 0:02:51]}  c6 {[%clk 0:02:51]} 11. c3 {[%clk 0:02:47]}  O-O {[%clk 0:02:51]} 12. Ne5 {[%clk 0:02:37]}  a5 {[%clk 0:02:42]} 13. Bf4 {[%clk 0:02:25]}  a4 {[%clk 0:02:30]} 14. Rad1 {[%clk 0:02:24]}  Qb6 {[%clk 0:02:25]} 15. Nc4 {[%clk 0:02:21]}  Qa7 {[%clk 0:02:19]} 16. Qh3 {[%clk 0:02:10]}  g6 {[%clk 0:02:18]} 17. Ne5 {[%clk 0:02:08]}  Nxe5 {[%clk 0:02:15]} 18. Bxe5 {[%clk 0:02:05]}  Nd7 {[%clk 0:02:11]} 19. Bf4 {[%clk 0:01:56]}  Bf6 {[%clk 0:02:11]} 20. Rfe1 {[%clk 0:01:55]}  Rfe8 {[%clk 0:02:11]} 21. Qf3 {[%clk 0:01:30]}  Bg7 {[%clk 0:02:10]} 22. Bc2 {[%clk 0:01:22]}  Qa5 {[%clk 0:02:09]} 23. h4 {[%clk 0:01:08]}  Qd5 {[%clk 0:02:08]} 24. Be4 {[%clk 0:00:41]}  Qxa2 {[%clk 0:02:06]} 25. Ra1 {[%clk 0:00:41]}  Qb3 {[%clk 0:02:02]} 26. Qe2 {[%clk 0:00:36]}  Qb6 {[%clk 0:01:58]} 27. Bd3 {[%clk 0:00:34]}  Nf6 {[%clk 0:01:57]} 28. Be5 {[%clk 0:00:33]}  Qd8 {[%clk 0:01:55]} 29. g3 {[%clk 0:00:32]}  Nd5 {[%clk 0:01:55]} 30. Bc2 {[%clk 0:00:32]}  Bxe5 {[%clk 0:01:55]} 31. Qxe5 {[%clk 0:00:31]}  Qf6 {[%clk 0:01:54]} 32. Rxa4 {[%clk 0:00:28]}  Qxe5 {[%clk 0:01:47]} 33. Rxe5 {[%clk 0:00:27]}  Rxa4 {[%clk 0:01:46]} 34. Bxa4 {[%clk 0:00:28]}  Ra8 {[%clk 0:01:46]} 35. Bb3 {[%clk 0:00:26]}  Ra1+ {[%clk 0:01:46]} 36. Kg2 {[%clk 0:00:26]}  Rb1 {[%clk 0:01:47]} 37. Re2 {[%clk 0:00:25]}  Nxc3 {[%clk 0:01:47]} 38. Rc2 {[%clk 0:00:12]}  Nd5 {[%clk 0:01:46]} 39. Kf3 {[%clk 0:00:12]}  Kg7 {[%clk 0:01:44]} 40. Ke4 {[%clk 0:00:12]}  Kf6 {[%clk 0:01:44]} 41. Bc4 {[%clk 0:00:11]}  h5 {[%clk 0:01:43]} 42. Bd3 {[%clk 0:00:11]}  Ra1 {[%clk 0:01:42]} 43. f3 {[%clk 0:00:07]}  Nb4 {[%clk 0:01:42]} 44. Rd2 {[%clk 0:00:06]}  Re1+ {[%clk 0:01:42]} 45. Kf4 {[%clk 0:00:05]}  Nd5# {[%clk 0:01:42]} 0-1


[Site "https://www.chess.com"]

[Event "Titled Tuesday Blitz June 13 Late 2023"]
[White "Fiorito, Francisco"]
[Black "Vaglio Munoz, Jaime"]
[WhiteFideId "180165"]
[BlackFideId "6500145"]
[WhiteElo "2319"]
[BlackElo "2199"]
[Result "0-1"]
[Round "4"]
[TimeControl "180+2"]
[Date "2023.06.13"]
[WhiteClock "0:00:00"]
[BlackClock "0:00:07"]
[Board "81"]

1. d4 {[%clk 0:02:58]}  d6 {[%clk 0:02:56]} 2. Nc3 {[%clk 0:02:57]}  Nf6 {[%clk 0:02:55]} 3. e4 {[%clk 0:02:55]}  e5 {[%clk 0:02:55]} 4. dxe5 {[%clk 0:02:49]}  dxe5 {[%clk 0:02:56]} 5. Qxd8+ {[%clk 0:02:49]}  Kxd8 {[%clk 0:02:57]} 6. Bc4 {[%clk 0:02:49]}  Ke8 {[%clk 0:02:57]} 7. f3 {[%clk 0:02:49]}  c6 {[%clk 0:02:55]} 8. a4 {[%clk 0:02:49]}  Bb4 {[%clk 0:02:53]} 9. Be3 {[%clk 0:02:48]}  Ke7 {[%clk 0:02:46]} 10. Ne2 {[%clk 0:02:46]}  Be6 {[%clk 0:02:46]} 11. Bxe6 {[%clk 0:02:43]}  Kxe6 {[%clk 0:02:47]} 12. Kf2 {[%clk 0:02:42]}  Na6 {[%clk 0:02:47]} 13. Na2 {[%clk 0:02:41]}  Bc5 {[%clk 0:02:48]} 14. Rhd1 {[%clk 0:02:34]}  Rhd8 {[%clk 0:02:39]} 15. c3 {[%clk 0:02:16]}  Bxe3+ {[%clk 0:02:35]} 16. Kxe3 {[%clk 0:02:16]}  Nc5 {[%clk 0:02:36]} 17. Rxd8 {[%clk 0:01:47]}  Rxd8 {[%clk 0:02:36]} 18. Nac1 {[%clk 0:01:47]}  Rd1 {[%clk 0:02:33]} 19. b4 {[%clk 0:01:44]}  Nd3 {[%clk 0:02:21]} 20. Nb3 {[%clk 0:01:43]}  Rxa1 {[%clk 0:02:13]} 21. Nxa1 {[%clk 0:01:44]}  Nb2 {[%clk 0:02:12]} 22. a5 {[%clk 0:01:42]}  h5 {[%clk 0:02:04]} 23. Nb3 {[%clk 0:01:39]}  b6 {[%clk 0:02:04]} 24. axb6 {[%clk 0:01:38]}  axb6 {[%clk 0:02:05]} 25. g3 {[%clk 0:01:38]}  Ne8 {[%clk 0:02:04]} 26. f4 {[%clk 0:01:35]}  Nd6 {[%clk 0:02:03]} 27. fxe5 {[%clk 0:01:34]}  Ndc4+ {[%clk 0:02:03]} 28. Kf4 {[%clk 0:01:30]}  Nd3+ {[%clk 0:02:02]} 29. Kg5 {[%clk 0:01:28]}  Ndxe5 {[%clk 0:01:34]} 30. Kxh5 {[%clk 0:01:19]}  Nf3 {[%clk 0:01:34]} 31. Nbd4+ {[%clk 0:01:14]}  Nxd4 {[%clk 0:01:34]} 32. cxd4 {[%clk 0:01:07]}  Nd2 {[%clk 0:01:31]} 33. Nf4+ {[%clk 0:01:07]}  Kf6 {[%clk 0:01:31]} 34. d5 {[%clk 0:01:05]}  c5 {[%clk 0:01:20]} 35. bxc5 {[%clk 0:00:54]}  bxc5 {[%clk 0:01:21]} 36. Kg4 {[%clk 0:00:38]}  c4 {[%clk 0:01:14]} 37. Ne2 {[%clk 0:00:25]}  Ke5 {[%clk 0:01:07]} 38. Nc3 {[%clk 0:00:22]}  Nf1 {[%clk 0:00:54]} 39. h4 {[%clk 0:00:18]}  Nh2+ {[%clk 0:00:54]} 40. Kh3 {[%clk 0:00:17]}  Nf3 {[%clk 0:00:55]} 41. Kg2 {[%clk 0:00:16]}  Nd4 {[%clk 0:00:53]} 42. Kf2 {[%clk 0:00:16]}  f5 {[%clk 0:00:44]} 43. exf5 {[%clk 0:00:13]}  Nxf5 {[%clk 0:00:44]} 44. Kf3 {[%clk 0:00:09]}  Nd6 {[%clk 0:00:44]} 45. g4 {[%clk 0:00:09]}  Kd4 {[%clk 0:00:44]} 46. Ne2+ {[%clk 0:00:06]}  Kd3 {[%clk 0:00:41]} 47. h5 {[%clk 0:00:05]}  Nf7 {[%clk 0:00:35]} 48. Nf4+ {[%clk 0:00:03]}  Kd2 {[%clk 0:00:35]} 49. Ne2 {[%clk 0:00:02]}  Ne5+ {[%clk 0:00:32]} 50. Kf2 {[%clk 0:00:01]}  Nxg4+ {[%clk 0:00:32]} 51. Kf1 {[%clk 0:00:02]}  Ne3+ {[%clk 0:00:31]} 52. Kf2 {[%clk 0:00:02]}  Nxd5 {[%clk 0:00:32]} 53. Kf3 {[%clk 0:00:03]}  Nf6 {[%clk 0:00:30]} 54. Nd4 {[%clk 0:00:02]}  Nxh5 {[%clk 0:00:26]} 55. Kg4 {[%clk 0:00:02]}  Nf6+ {[%clk 0:00:25]} 56. Kf5 {[%clk 0:00:03]}  c3 {[%clk 0:00:20]} 57. Kg6 {[%clk 0:00:03]}  Kd3 {[%clk 0:00:15]} 58. Nb3 {[%clk 0:00:03]}  c2 {[%clk 0:00:14]} 59. Kxg7 {[%clk 0:00:03]}  Nd5 {[%clk 0:00:08]} 60. Kg6 {[%clk 0:00:03]}  Nf4+ {[%clk 0:00:06]} 61. Kf5 {[%clk 0:00:03]}  Ne2 {[%clk 0:00:07]} 62. Ke5 {[%clk 0:00:00]}  Kc3 {[%clk 0:00:07]} 0-1


[Site "https://www.chess.com"]

[Event "Titled Tuesday Blitz June 13 Late 2023"]
[White "Klinova, Masha"]
[Black "Sydoryka, Vladyslav"]
[WhiteFideId "2802015"]
[BlackFideId "14145928"]
[WhiteElo "2241"]
[BlackElo "2269"]
[Result "0-1"]
[Round "4"]
[TimeControl "180+2"]
[Date "2023.06.13"]
[WhiteClock "0:00:40"]
[BlackClock "0:01:18"]
[Board "82"]

1. e4 {[%clk 0:03:00]}  c6 {[%clk 0:03:00]} 2. d4 {[%clk 0:03:00]}  d5 {[%clk 0:03:01]} 3. Nc3 {[%clk 0:03:00]}  dxe4 {[%clk 0:03:01]} 4. Nxe4 {[%clk 0:03:01]}  Bf5 {[%clk 0:03:01]} 5. Ng3 {[%clk 0:03:01]}  Bg6 {[%clk 0:03:02]} 6. h4 {[%clk 0:03:02]}  h6 {[%clk 0:03:02]} 7. Nf3 {[%clk 0:03:03]}  e6 {[%clk 0:03:03]} 8. h5 {[%clk 0:03:03]}  Bh7 {[%clk 0:03:03]} 9. Bd3 {[%clk 0:03:04]}  Bxd3 {[%clk 0:03:04]} 10. Qxd3 {[%clk 0:03:05]}  Nf6 {[%clk 0:03:05]} 11. Bd2 {[%clk 0:03:05]}  Be7 {[%clk 0:03:03]} 12. O-O-O {[%clk 0:03:05]}  O-O {[%clk 0:03:04]} 13. Kb1 {[%clk 0:03:05]}  Nbd7 {[%clk 0:03:00]} 14. Ne4 {[%clk 0:03:04]}  Nxe4 {[%clk 0:03:00]} 15. Qxe4 {[%clk 0:03:04]}  Nf6 {[%clk 0:03:01]} 16. Qe2 {[%clk 0:03:04]}  Qd5 {[%clk 0:03:02]} 17. Ne5 {[%clk 0:03:02]}  Qe4 {[%clk 0:02:51]} 18. Be3 {[%clk 0:03:01]}  Nd5 {[%clk 0:02:49]} 19. g4 {[%clk 0:02:58]}  Rfd8 {[%clk 0:02:35]} 20. Rhe1 {[%clk 0:02:33]}  c5 {[%clk 0:02:31]} 21. Qf3 {[%clk 0:02:22]}  Qxf3 {[%clk 0:02:20]} 22. Nxf3 {[%clk 0:02:23]}  cxd4 {[%clk 0:02:21]} 23. Bxd4 {[%clk 0:02:21]}  b5 {[%clk 0:02:15]} 24. Ne5 {[%clk 0:02:18]}  Bf6 {[%clk 0:02:08]} 25. Nc6 {[%clk 0:02:15]}  Rd6 {[%clk 0:02:06]} 26. Bxf6 {[%clk 0:02:11]}  Rxc6 {[%clk 0:02:06]} 27. Bd4 {[%clk 0:02:09]}  a5 {[%clk 0:02:05]} 28. Re2 {[%clk 0:01:54]}  Rac8 {[%clk 0:02:04]} 29. f3 {[%clk 0:01:48]}  b4 {[%clk 0:02:02]} 30. Be5 {[%clk 0:01:39]}  Rc4 {[%clk 0:02:00]} 31. Re4 {[%clk 0:01:37]}  Rxc2 {[%clk 0:01:59]} 32. f4 {[%clk 0:01:26]}  Rg2 {[%clk 0:01:56]} 33. f5 {[%clk 0:01:26]}  exf5 {[%clk 0:01:38]} 34. gxf5 {[%clk 0:01:25]}  f6 {[%clk 0:01:39]} 35. Bd4 {[%clk 0:01:17]}  Rd8 {[%clk 0:01:39]} 36. Kc1 {[%clk 0:01:11]}  Rc8+ {[%clk 0:01:28]} 37. Kb1 {[%clk 0:01:11]}  Rg5 {[%clk 0:01:21]} 38. Bf2 {[%clk 0:00:55]}  Rxf5 {[%clk 0:01:19]} 39. Bg3 {[%clk 0:00:51]}  Rxh5 {[%clk 0:01:20]} 40. Red4 {[%clk 0:00:51]}  Ne3 {[%clk 0:01:18]} 41. Rg1 {[%clk 0:00:46]}  Nf5 {[%clk 0:01:17]} 42. Rg4 {[%clk 0:00:42]}  Nxg3 {[%clk 0:01:17]} 43. R4xg3 {[%clk 0:00:40]}  Rg5 {[%clk 0:01:18]} 0-1


[Site "https://www.chess.com"]

[Event "Titled Tuesday Blitz June 13 Late 2023"]
[White "Osmonbekov, Talaibek"]
[Black "ATM622"]
[WhiteFideId "2017253"]
[WhiteElo "2135"]
[BlackElo "2605"]
[Result "0-1"]
[Round "4"]
[TimeControl "180+2"]
[Date "2023.06.13"]
[WhiteClock "0:00:00"]
[BlackClock "0:00:55"]
[Board "84"]

1. d4 {[%clk 0:03:00]}  Nf6 {[%clk 0:02:59]} 2. Bf4 {[%clk 0:03:01]}  e6 {[%clk 0:02:58]} 3. Nc3 {[%clk 0:03:01]}  d5 {[%clk 0:02:59]} 4. e3 {[%clk 0:03:01]}  Bb4 {[%clk 0:02:57]} 5. Bd3 {[%clk 0:03:00]}  c5 {[%clk 0:02:56]} 6. dxc5 {[%clk 0:03:00]}  Bxc5 {[%clk 0:02:55]} 7. Nf3 {[%clk 0:03:00]}  O-O {[%clk 0:02:53]} 8. O-O {[%clk 0:03:00]}  Nc6 {[%clk 0:02:52]} 9. e4 {[%clk 0:03:01]}  d4 {[%clk 0:02:44]} 10. Ne2 {[%clk 0:03:00]}  h6 {[%clk 0:02:35]} 11. a3 {[%clk 0:02:56]}  a5 {[%clk 0:02:34]} 12. Ng3 {[%clk 0:02:54]}  Re8 {[%clk 0:02:22]} 13. e5 {[%clk 0:02:51]}  Nd5 {[%clk 0:02:20]} 14. Bd2 {[%clk 0:02:50]}  a4 {[%clk 0:02:12]} 15. Qe2 {[%clk 0:02:43]}  Nce7 {[%clk 0:01:56]} 16. Rae1 {[%clk 0:02:05]}  Nf5 {[%clk 0:01:51]} 17. Qe4 {[%clk 0:01:42]}  Nde7 {[%clk 0:01:46]} 18. Nh5 {[%clk 0:01:17]}  Qd5 {[%clk 0:01:39]} 19. Qg4 {[%clk 0:01:16]}  Kh8 {[%clk 0:01:34]} 20. Nf6 {[%clk 0:00:31]}  gxf6 {[%clk 0:01:31]} 21. exf6 {[%clk 0:00:32]}  Rg8 {[%clk 0:01:30]} 22. Qh3 {[%clk 0:00:27]}  Rg6 {[%clk 0:01:26]} 23. fxe7 {[%clk 0:00:26]}  Bxe7 {[%clk 0:01:26]} 24. Bxf5 {[%clk 0:00:25]}  exf5 {[%clk 0:01:21]} 25. Rxe7 {[%clk 0:00:24]}  f4 {[%clk 0:01:22]} 26. Re8+ {[%clk 0:00:18]}  Kh7 {[%clk 0:01:20]} 27. Rxc8 {[%clk 0:00:17]}  Rxc8 {[%clk 0:01:19]} 28. Qxc8 {[%clk 0:00:15]}  Qxf3 {[%clk 0:01:19]} 29. g3 {[%clk 0:00:15]}  h5 {[%clk 0:01:10]} 30. Qf5 {[%clk 0:00:11]}  Qe2 {[%clk 0:01:07]} 31. Qxf7+ {[%clk 0:00:08]}  Rg7 {[%clk 0:01:07]} 32. Qf5+ {[%clk 0:00:08]}  Kg8 {[%clk 0:01:05]} 33. Qxf4 {[%clk 0:00:08]}  Rf7 {[%clk 0:01:01]} 34. Qg5+ {[%clk 0:00:08]}  Kh7 {[%clk 0:00:59]} 35. Bf4 {[%clk 0:00:03]}  Qxc2 {[%clk 0:00:57]} 36. Qxh5+ {[%clk 0:00:00]}  Kg8 {[%clk 0:00:55]} 0-1


[Site "https://www.chess.com"]

[Event "Titled Tuesday Blitz June 13 Late 2023"]
[White "Petersson, Kjell"]
[Black "Mika, Tomasz"]
[WhiteFideId "1705148"]
[BlackFideId "1132970"]
[WhiteElo "2005"]
[BlackElo "2186"]
[Result "0-1"]
[Round "4"]
[TimeControl "180+2"]
[Date "2023.06.13"]
[WhiteClock "0:00:32"]
[BlackClock "0:01:04"]
[Board "86"]

1. d4 {[%clk 0:03:00]}  Nf6 {[%clk 0:02:59]} 2. Bf4 {[%clk 0:03:01]}  c5 {[%clk 0:02:56]} 3. d5 {[%clk 0:03:01]}  Qb6 {[%clk 0:02:56]} 4. Nc3 {[%clk 0:03:01]}  Qxb2 {[%clk 0:02:56]} 5. Bd2 {[%clk 0:03:01]}  Qb6 {[%clk 0:02:55]} 6. e4 {[%clk 0:03:00]}  d6 {[%clk 0:02:55]} 7. f4 {[%clk 0:03:00]}  a6 {[%clk 0:02:54]} 8. e5 {[%clk 0:02:59]}  Nfd7 {[%clk 0:02:50]} 9. Nf3 {[%clk 0:02:49]}  g6 {[%clk 0:02:49]} 10. Rb1 {[%clk 0:02:45]}  Qd8 {[%clk 0:02:46]} 11. e6 {[%clk 0:02:33]}  fxe6 {[%clk 0:02:44]} 12. Ng5 {[%clk 0:02:33]}  Nf6 {[%clk 0:02:19]} 13. dxe6 {[%clk 0:02:29]}  Rg8 {[%clk 0:02:17]} 14. Nf7 {[%clk 0:02:24]}  Qc7 {[%clk 0:02:16]} 15. Bc4 {[%clk 0:01:56]}  b5 {[%clk 0:02:16]} 16. Bd5 {[%clk 0:01:55]}  Nc6 {[%clk 0:02:08]} 17. Qf3 {[%clk 0:01:49]}  Nd4 {[%clk 0:01:58]} 18. Qd1 {[%clk 0:01:32]}  Nxd5 {[%clk 0:01:51]} 19. Nxd5 {[%clk 0:01:30]}  Qc6 {[%clk 0:01:40]} 20. c4 {[%clk 0:01:19]}  Bxe6 {[%clk 0:01:30]} 21. Ba5 {[%clk 0:01:11]}  Bxd5 {[%clk 0:01:23]} 22. cxd5 {[%clk 0:00:59]}  Qxd5 {[%clk 0:01:24]} 23. Ng5 {[%clk 0:00:52]}  Qxg2 {[%clk 0:01:17]} 24. Rf1 {[%clk 0:00:42]}  Nc2+ {[%clk 0:01:14]} 25. Qxc2 {[%clk 0:00:39]}  Qxc2 {[%clk 0:01:14]} 26. Rd1 {[%clk 0:00:35]}  h6 {[%clk 0:01:06]} 27. Ne6 {[%clk 0:00:32]}  Qe4+ {[%clk 0:01:04]} 0-1


[Site "https://www.chess.com"]

[Event "Titled Tuesday Blitz June 13 Late 2023"]
[White "Mikaelyan, Arman"]
[Black "Martins, Vinicius Tine"]
[WhiteFideId "13304852"]
[BlackFideId "2112884"]
[WhiteElo "2456"]
[BlackElo "2373"]
[Result "1-0"]
[Round "4"]
[TimeControl "180+2"]
[Date "2023.06.13"]
[WhiteClock "0:02:39"]
[BlackClock "0:02:34"]
[Board "87"]

1. b3 {[%clk 0:03:00]}  d5 {[%clk 0:02:58]} 2. Bb2 {[%clk 0:03:01]}  c5 {[%clk 0:02:57]} 3. e3 {[%clk 0:03:02]}  Nf6 {[%clk 0:02:55]} 4. Nf3 {[%clk 0:03:01]}  g6 {[%clk 0:02:55]} 5. Bb5+ {[%clk 0:03:01]}  Bd7 {[%clk 0:02:54]} 6. a4 {[%clk 0:02:56]}  Bg7 {[%clk 0:02:53]} 7. O-O {[%clk 0:02:56]}  O-O {[%clk 0:02:53]} 8. d4 {[%clk 0:02:51]}  Ne4 {[%clk 0:02:51]} 9. Nbd2 {[%clk 0:02:50]}  Nxd2 {[%clk 0:02:49]} 10. Qxd2 {[%clk 0:02:51]}  Nc6 {[%clk 0:02:48]} 11. Rab1 {[%clk 0:02:40]}  b6 {[%clk 0:02:42]} 12. dxc5 {[%clk 0:02:39]}  Bxb2 {[%clk 0:02:37]} 13. Rxb2 {[%clk 0:02:40]}  Bg4 {[%clk 0:02:34]} 14. Bxc6 {[%clk 0:02:39]} 1-0


[Site "https://www.chess.com"]

[Event "Titled Tuesday Blitz June 13 Late 2023"]
[White "Korchmar, Vasiliy"]
[Black "Ronka, Erik"]
[WhiteFideId "24131750"]
[BlackFideId "505080"]
[WhiteElo "2370"]
[BlackElo "2264"]
[Result "1-0"]
[Round "4"]
[TimeControl "180+2"]
[Date "2023.06.13"]
[WhiteClock "0:02:20"]
[BlackClock "0:00:00"]
[Board "90"]

1. e4 {[%clk 0:03:00]}  c5 {[%clk 0:03:00]} 2. Nf3 {[%clk 0:02:59]}  d6 {[%clk 0:03:00]} 3. g3 {[%clk 0:02:59]}  Nc6 {[%clk 0:02:59]} 4. Bg2 {[%clk 0:02:58]}  g6 {[%clk 0:02:59]} 5. O-O {[%clk 0:02:58]}  Bg7 {[%clk 0:02:59]} 6. c3 {[%clk 0:02:59]}  Nf6 {[%clk 0:02:57]} 7. Re1 {[%clk 0:02:56]}  O-O {[%clk 0:02:42]} 8. d4 {[%clk 0:02:49]}  cxd4 {[%clk 0:02:41]} 9. cxd4 {[%clk 0:02:50]}  d5 {[%clk 0:02:41]} 10. e5 {[%clk 0:02:49]}  Ne4 {[%clk 0:02:26]} 11. Nc3 {[%clk 0:02:49]}  Nxc3 {[%clk 0:02:25]} 12. bxc3 {[%clk 0:02:50]}  Bf5 {[%clk 0:02:05]} 13. h4 {[%clk 0:02:39]}  Rc8 {[%clk 0:02:02]} 14. h5 {[%clk 0:02:39]}  Na5 {[%clk 0:01:33]} 15. h6 {[%clk 0:02:39]}  Bh8 {[%clk 0:01:32]} 16. Bd2 {[%clk 0:02:39]}  Nc4 {[%clk 0:01:31]} 17. Ng5 {[%clk 0:02:35]}  Qa5 {[%clk 0:00:38]} 18. Rc1 {[%clk 0:02:34]}  Nxd2 {[%clk 0:00:28]} 19. Qxd2 {[%clk 0:02:35]}  f6 {[%clk 0:00:25]} 20. exf6 {[%clk 0:02:34]}  exf6 {[%clk 0:00:26]} 21. Ne6 {[%clk 0:02:34]}  Rfe8 {[%clk 0:00:24]} 22. Nf4 {[%clk 0:02:34]}  Be4 {[%clk 0:00:23]} 23. Bxe4 {[%clk 0:02:28]}  dxe4 {[%clk 0:00:24]} 24. Qc2 {[%clk 0:02:29]}  f5 {[%clk 0:00:24]} 25. Qb3+ {[%clk 0:02:29]}  Kf8 {[%clk 0:00:22]} 26. Ne6+ {[%clk 0:02:30]}  Ke7 {[%clk 0:00:21]} 27. Ng5 {[%clk 0:02:30]}  Kd6 {[%clk 0:00:12]} 28. c4 {[%clk 0:02:25]}  Bf6 {[%clk 0:00:07]} 29. Nxh7 {[%clk 0:02:24]}  Be7 {[%clk 0:00:07]} 30. c5+ {[%clk 0:02:22]}  Kd7 {[%clk 0:00:06]} 31. Qxb7+ {[%clk 0:02:22]}  Rc7 {[%clk 0:00:06]} 32. Qd5+ {[%clk 0:02:22]}  Kc8 {[%clk 0:00:07]} 33. Qf7 {[%clk 0:02:23]}  Qa4 {[%clk 0:00:06]} 34. Qxg6 {[%clk 0:02:22]}  Rd8 {[%clk 0:00:04]} 35. Qxf5+ {[%clk 0:02:23]}  Kb8 {[%clk 0:00:05]} 36. Rb1+ {[%clk 0:02:22]}  Rb7 {[%clk 0:00:03]} 37. Qxe4 {[%clk 0:02:23]}  Rd7 {[%clk 0:00:00]} 38. c6 {[%clk 0:02:20]} 1-0


[Site "https://www.chess.com"]

[Event "Titled Tuesday Blitz June 13 Late 2023"]
[White "Bjelobrk, Igor"]
[Black "Baches Garcia, Guillermo"]
[WhiteFideId "4300726"]
[BlackFideId "2209764"]
[WhiteElo "2319"]
[BlackElo "2480"]
[Result "1-0"]
[Round "4"]
[TimeControl "180+2"]
[Date "2023.06.13"]
[WhiteClock "0:00:19"]
[BlackClock "0:00:00"]
[Board "91"]

1. d4 {[%clk 0:02:47]}  d5 {[%clk 0:02:59]} 2. c4 {[%clk 0:02:47]}  e6 {[%clk 0:03:00]} 3. Nf3 {[%clk 0:02:46]}  h6 {[%clk 0:02:59]} 4. g3 {[%clk 0:02:46]}  Nf6 {[%clk 0:03:00]} 5. Bg2 {[%clk 0:02:34]}  Bd6 {[%clk 0:02:59]} 6. Nc3 {[%clk 0:02:31]}  Nc6 {[%clk 0:02:56]} 7. O-O {[%clk 0:02:27]}  O-O {[%clk 0:02:55]} 8. b3 {[%clk 0:02:24]}  dxc4 {[%clk 0:02:36]} 9. bxc4 {[%clk 0:02:24]}  e5 {[%clk 0:02:36]} 10. d5 {[%clk 0:02:10]}  Na5 {[%clk 0:02:28]} 11. Nd2 {[%clk 0:02:01]}  b6 {[%clk 0:02:18]} 12. a4 {[%clk 0:01:55]}  Re8 {[%clk 0:02:08]} 13. Bb2 {[%clk 0:01:48]}  Bf5 {[%clk 0:01:53]} 14. e4 {[%clk 0:01:42]}  Bg4 {[%clk 0:01:51]} 15. Qc2 {[%clk 0:01:41]}  Qd7 {[%clk 0:01:47]} 16. f3 {[%clk 0:01:38]}  Bh3 {[%clk 0:01:44]} 17. Bxh3 {[%clk 0:01:23]}  Qxh3 {[%clk 0:01:43]} 18. Ba3 {[%clk 0:01:24]}  Nd7 {[%clk 0:01:25]} 19. Nb5 {[%clk 0:01:16]}  Nc5 {[%clk 0:01:12]} 20. Nxd6 {[%clk 0:01:05]}  cxd6 {[%clk 0:01:12]} 21. Bxc5 {[%clk 0:01:06]}  dxc5 {[%clk 0:01:09]} 22. Nb3 {[%clk 0:01:05]}  Nb7 {[%clk 0:00:59]} 23. a5 {[%clk 0:01:03]}  Nd6 {[%clk 0:00:58]} 24. Nc1 {[%clk 0:01:02]}  f5 {[%clk 0:00:50]} 25. Nd3 {[%clk 0:00:51]}  fxe4 {[%clk 0:00:48]} 26. Nf2 {[%clk 0:00:51]}  Qd7 {[%clk 0:00:33]} 27. Nxe4 {[%clk 0:00:51]}  Nf5 {[%clk 0:00:30]} 28. Qb2 {[%clk 0:00:37]}  Rab8 {[%clk 0:00:25]} 29. axb6 {[%clk 0:00:34]}  axb6 {[%clk 0:00:24]} 30. Ra6 {[%clk 0:00:31]}  b5 {[%clk 0:00:20]} 31. Nxc5 {[%clk 0:00:20]}  Qe7 {[%clk 0:00:11]} 32. Ne6 {[%clk 0:00:21]}  bxc4 {[%clk 0:00:10]} 33. Qxe5 {[%clk 0:00:21]}  Rf8 {[%clk 0:00:02]} 34. Rc6 {[%clk 0:00:20]}  Qa7+ {[%clk 0:00:02]} 35. Kg2 {[%clk 0:00:20]}  Rb3 {[%clk 0:00:00]} 36. Rc7 {[%clk 0:00:19]} 1-0


[Site "https://www.chess.com"]

[Event "Titled Tuesday Blitz June 13 Late 2023"]
[White "Yang, Kevin"]
[Black "Mendez Fortes, Eduardo Jesus"]
[WhiteFideId "30908485"]
[BlackFideId "3502376"]
[WhiteElo "2055"]
[BlackElo "2307"]
[Result "0-1"]
[Round "4"]
[TimeControl "180+2"]
[Date "2023.06.13"]
[WhiteClock "0:00:00"]
[BlackClock "0:00:24"]
[Board "95"]

1. d4 {[%clk 0:03:00]}  Nf6 {[%clk 0:02:59]} 2. c4 {[%clk 0:02:59]}  e6 {[%clk 0:03:00]} 3. Nc3 {[%clk 0:02:54]}  Bb4 {[%clk 0:02:57]} 4. Qc2 {[%clk 0:02:52]}  O-O {[%clk 0:02:56]} 5. a3 {[%clk 0:02:48]}  Bxc3+ {[%clk 0:02:56]} 6. Qxc3 {[%clk 0:02:49]}  b6 {[%clk 0:02:56]} 7. Bg5 {[%clk 0:02:47]}  Bb7 {[%clk 0:02:56]} 8. e3 {[%clk 0:02:46]}  d6 {[%clk 0:02:56]} 9. Ne2 {[%clk 0:02:45]}  Nbd7 {[%clk 0:02:55]} 10. Qc2 {[%clk 0:02:44]}  c5 {[%clk 0:02:55]} 11. Rd1 {[%clk 0:02:43]}  Qc7 {[%clk 0:02:55]} 12. Nc3 {[%clk 0:02:40]}  h6 {[%clk 0:02:55]} 13. Bf4 {[%clk 0:02:36]}  e5 {[%clk 0:02:45]} 14. Nb5 {[%clk 0:02:19]}  Qb8 {[%clk 0:02:45]} 15. dxe5 {[%clk 0:02:16]}  dxe5 {[%clk 0:02:40]} 16. Bg3 {[%clk 0:02:08]}  a6 {[%clk 0:02:35]} 17. Nc3 {[%clk 0:01:46]}  Rd8 {[%clk 0:02:31]} 18. f3 {[%clk 0:01:44]}  Qc7 {[%clk 0:02:30]} 19. Bd3 {[%clk 0:01:43]}  Nf8 {[%clk 0:02:23]} 20. O-O {[%clk 0:01:40]}  Qe7 {[%clk 0:02:20]} 21. Ne4 {[%clk 0:01:20]}  Nh5 {[%clk 0:01:47]} 22. Bf2 {[%clk 0:01:08]}  g6 {[%clk 0:01:33]} 23. Qb3 {[%clk 0:00:42]}  Rab8 {[%clk 0:01:31]} 24. Nc3 {[%clk 0:00:39]}  Nf6 {[%clk 0:01:23]} 25. Bh4 {[%clk 0:00:34]}  g5 {[%clk 0:01:23]} 26. Bg3 {[%clk 0:00:34]}  Bc6 {[%clk 0:01:22]} 27. Bf5 {[%clk 0:00:31]}  Nh5 {[%clk 0:01:18]} 28. Bf2 {[%clk 0:00:25]}  Ng7 {[%clk 0:01:16]} 29. Bb1 {[%clk 0:00:22]}  Rdc8 {[%clk 0:01:10]} 30. Nd5 {[%clk 0:00:21]}  Qe6 {[%clk 0:01:00]} 31. Qc2 {[%clk 0:00:11]}  b5 {[%clk 0:00:58]} 32. b3 {[%clk 0:00:09]}  bxc4 {[%clk 0:00:57]} 33. bxc4 {[%clk 0:00:10]}  Ng6 {[%clk 0:00:54]} 34. h4 {[%clk 0:00:09]}  gxh4 {[%clk 0:00:44]} 35. Bxh4 {[%clk 0:00:08]}  Rxb1 {[%clk 0:00:43]} 36. Nf6+ {[%clk 0:00:04]}  Kf8 {[%clk 0:00:42]} 37. Qxb1 {[%clk 0:00:02]}  Nxh4 {[%clk 0:00:41]} 38. Ng4 {[%clk 0:00:03]}  Nhf5 {[%clk 0:00:41]} 39. Qb3 {[%clk 0:00:01]}  h5 {[%clk 0:00:40]} 40. Nf2 {[%clk 0:00:02]}  h4 {[%clk 0:00:37]} 41. Nh3 {[%clk 0:00:01]}  Qg6 {[%clk 0:00:35]} 42. Rd3 {[%clk 0:00:02]}  Kg8 {[%clk 0:00:32]} 43. e4 {[%clk 0:00:02]}  Nd4 {[%clk 0:00:31]} 44. Qb6 {[%clk 0:00:03]}  Nge6 {[%clk 0:00:26]} 45. Qa7 {[%clk 0:00:03]}  Nf4 {[%clk 0:00:22]} 46. Nxf4 {[%clk 0:00:03]}  exf4 {[%clk 0:00:23]} 47. Qxa6 {[%clk 0:00:03]}  Rd8 {[%clk 0:00:23]} 48. Qa7 {[%clk 0:00:02]}  Ne2+ {[%clk 0:00:23]} 49. Kf2 {[%clk 0:00:02]}  Rxd3 {[%clk 0:00:24]} 50. Kxe2 {[%clk 0:00:02]}  Qd6 {[%clk 0:00:24]} 51. Re1 {[%clk 0:00:00]}  Re3+ {[%clk 0:00:24]} 0-1


[Site "https://www.chess.com"]